fUST/lending_fUST_20251012
["ID","MTS","AMOUNT","RATE_DAILY","PERIOD"]
[390908910,1760210918081,500.0,0.0002259,2]
[390908911,1760210918293,500.0,0.00022589,2]
[390908912,1760210918330,499.86,0.0002259,2]
[390908913,1760210918584,500.0,0.00022589,2]
[390908914,1760210919071,500.0,0.00022589,2]
[390908915,1760210919172,500.0,0.00022589,2]
[390908916,1760210919429,500.0,0.00022589,2]
[390908917,1760210919660,338.56,0.00022589,2]
[390908918,1760210919689,331.14,0.00022589,2]
[390908919,1760210920153,525.16671345,0.0001,2]
[390908920,1760210921053,260.70401695,0.00015,2]
[390908921,1760210923409,500.0,0.0002259,2]
[390908922,1760210923533,106.64836105,0.00022591,2]
[390908923,1760210923554,393.35163895,0.00022591,2]
[390908924,1760210923646,500.0,0.0002259,2]
[390908925,1760210923774,500.0,0.00022591,2]
[390908926,1760210924018,500.0,0.00022591,2]
[390908927,1760210924245,500.0,0.0002259,2]
[390908928,1760210924271,500.0,0.00022591,2]
[390908929,1760210924522,500.0,0.0002259,2]
[390908930,1760210924788,500.0,0.0002259,2]
[390908931,1760210925040,500.0,0.0002259,2]
[390908932,1760210925349,500.0,0.0002259,2]
[390908933,1760210925685,500.0,0.0002259,2]
[390908934,1760210925937,500.0,0.0002259,2]
[390908935,1760210926182,500.0,0.0002259,2]
[390908936,1760210926428,518.77,0.0002259,2]
[390908937,1760210927306,-5000.0,0.00023104,2]
[390908938,1760210927491,-500.0,0.00023337,2]
[390908939,1760210927521,-500.0,0.00023337,2]
[390908940,1760210927551,-500.0,0.00023337,2]
[390908941,1760210927584,-500.0,0.00023337,2]
[390908942,1760210928595,500.0,0.00022589,2]
[390908943,1760210933298,771.61,0.00022589,2]
[390908944,1760210933513,771.61,0.00022589,2]
[390908945,1760210933776,771.61,0.00022589,2]
[390908946,1760210934034,771.61,0.00022589,2]
[390908947,1760210934260,535.48,0.0002259,2]
[390908948,1760210934298,771.61,0.00022589,2]
[390908949,1760210934534,771.61,0.00022589,2]
[390908950,1760210934767,334.87,0.00022589,2]
[390908951,1760210934790,436.74,0.00022589,2]
[390908952,1760210935010,771.61,0.00022589,2]
[390908953,1760210935267,771.61,0.00022589,2]
[390908954,1760210935509,771.61,0.00022589,2]
[390908955,1760210935753,771.61,0.00022589,2]
[390908956,1760210935997,771.61,0.00022589,2]
[390908957,1760210936255,771.61,0.00022589,2]
[390908958,1760210936487,771.61,0.00022589,2]
[390908959,1760210936514,150.0,0.00020389,2]
[390908960,1760210936735,771.61,0.00022589,2]
[390908961,1760210936977,771.61,0.00022589,2]
[390908962,1760210937223,771.61,0.00022589,2]
[390908963,1760210937404,224.2,0.00022242,2]
[390908964,1760210937465,771.61,0.00022589,2]
[390908965,1760210937708,701.36,0.00022589,2]
[390908966,1760210937730,70.25,0.00022589,2]
[390908967,1760210937951,771.61,0.00022589,2]
[390908968,1760210938256,771.61,0.00022589,2]
[390908969,1760210938535,771.61,0.00022589,2]
[390908970,1760210938809,771.61,0.00022589,2]
[390908971,1760210939236,771.83,0.00022589,2]
[390908972,1760210940151,500.0,0.00022589,2]
[390908973,1760210940472,500.0,0.00022591,2]
[390908974,1760210940721,500.0,0.00022591,2]
[390908975,1760210943548,500.0,0.0002259,2]
[390908976,1760210943784,500.0,0.0002259,2]
[390908977,1760210944052,500.0,0.0002259,2]
[390908978,1760210944313,500.0,0.0002259,2]
[390908979,1760210944557,152.52915448,0.0002259,2]
[390908987,1760210990903,-500.0,0.00022588,2]
[390908988,1760210990930,-500.0,0.00022588,2]
[390908989,1760210999724,2965.56,0.00022588,2]
[390908990,1760210999954,2965.56,0.00022588,2]
[390908991,1760211000186,2068.89,0.00022588,2]
[390908992,1760211000212,896.67,0.00022588,2]
[390908993,1760211000504,2965.56,0.00022588,2]
[390908994,1760211000750,2965.56,0.00022588,2]
[390908995,1760211000989,2965.56,0.00022588,2]
[390908996,1760211001233,206.66,0.00022588,2]
[390908997,1760211001256,293.34,0.00022588,2]
[390908998,1760211001289,2965.56,0.00022588,2]
[390908999,1760211001537,2965.56,0.00022588,2]
[390909000,1760211001775,2965.56,0.00022588,2]
[390909001,1760211002037,809.99,0.00022588,2]
[390909002,1760211002069,2155.57,0.00022588,2]
[390909003,1760211002271,210.0,0.00022588,2]
[390909004,1760211002313,2965.56,0.00022588,2]
[390909005,1760211002341,300.0,0.00022588,2]
[390909006,1760211002489,2965.56,0.00022588,2]
[390909007,1760211002725,1403.32,0.00022588,2]
[390909008,1760211002749,1562.24,0.00022588,2]
[390909009,1760211002947,2965.56,0.00022588,2]
[390909010,1760211003187,2965.56,0.00022588,2]
[390909011,1760211003371,517.06328717,0.00022588,2]
[390909012,1760211003496,1989.58671283,0.00022588,2]
[390909013,1760211003522,975.97328717,0.00022588,2]
[390909014,1760211003740,2965.56,0.00022588,2]
[390909015,1760211004056,2965.56,0.00022588,2]
[390909016,1760211004310,2965.56,0.00022588,2]
[390909017,1760211004587,127.35671283,0.00022588,2]
[390909018,1760211004611,2838.20328717,0.00022588,2]
[390909019,1760211004820,2965.56,0.00022588,2]
[390909020,1760211005145,2965.56,0.00022588,2]
[390909021,1760211005395,1230.68671283,0.00022588,2]
[390909022,1760211005420,1734.87328717,0.00022588,2]
[390909023,1760211005654,2965.72,0.00022588,2]
[390909024,1760211007172,1200.0,0.00022588,2]
[390909025,1760211013391,500.0,0.00022588,2]
[390909026,1760211013651,500.0,0.00022588,2]
[390909027,1760211013896,500.0,0.00022588,2]
[390909028,1760211014165,500.0,0.00022588,2]
[390909029,1760211014424,500.0,0.00022588,2]
[390909030,1760211014657,500.0,0.00022588,2]
[390909031,1760211014989,500.0,0.00022588,2]
[390909032,1760211015285,500.0,0.00022588,2]
[390909033,1760211015479,99.41671283,0.00022588,2]
[390909034,1760211016162,150.0,0.00019527,2]
[390909035,1760211020486,-238.78,0.00021302,2]
[390909071,1760211032512,-286.81356417,0.00022221,2]
[390909072,1760211032524,-713.18643583,0.00022221,2]
[390909073,1760211032533,-195.76813234,0.00022588,2]
[390909075,1760211032573,-204.81515483,0.00022588,2]
[390909077,1760211032587,-500.0,0.00022588,2]
[390909079,1760211032596,-500.0,0.00022588,2]
[390909081,1760211032605,-500.0,0.00022588,2]
[390909083,1760211032615,-500.0,0.00022588,2]
[390909085,1760211032625,-500.0,0.00022588,2]
[390909087,1760211032635,-500.0,0.00022588,2]
[390909089,1760211032646,-500.0,0.00022588,2]
[390909091,1760211032657,-273.94,0.00022588,2]
[390909093,1760211032669,-500.0,0.00022588,2]
[390909095,1760211032679,-154.09,0.00022588,2]
[390909097,1760211032689,-500.0,0.00022588,2]
[390909099,1760211032698,-500.0,0.00022588,2]
[390909101,1760211032708,-500.0,0.00022589,2]
[390909103,1760211032718,-500.0,0.00022589,2]
[390909104,1760211032728,-500.0,0.00022589,2]
[390909106,1760211032741,-500.0,0.00022589,2]
[390909108,1760211032751,-539.98,0.00022589,2]
[390909110,1760211032760,-500.0,0.00022589,2]
[390909112,1760211032773,-500.0,0.00022589,2]
[390909114,1760211032783,-500.0,0.00022589,2]
[390909116,1760211032793,-500.0,0.00022589,2]
[390909119,1760211032804,-191.42,0.00022589,2]
[390909121,1760211032813,-601.73,0.00022589,2]
[390909123,1760211032824,-500.0,0.00022589,2]
[390909124,1760211032834,-500.0,0.00022589,2]
[390909126,1760211032844,-500.0,0.00022589,2]
[390909128,1760211032853,-500.0,0.00022589,2]
[390909130,1760211032862,-500.0,0.00022589,2]
[390909132,1760211032873,-500.0,0.00022589,2]
[390909133,1760211032883,-500.0,0.00022589,2]
[390909134,1760211032893,-500.0,0.00022589,2]
[390909135,1760211032908,-500.0,0.00022589,2]
[390909136,1760211032919,-500.0,0.00022589,2]
[390909137,1760211032928,-201.80416753,0.00022589,2]
[390909138,1760211032938,-500.0,0.00022589,2]
[390909139,1760211032948,-500.0,0.00022589,2]
[390909140,1760211032958,-500.0,0.00022589,2]
[390909141,1760211032968,-500.0,0.00022589,2]
[390909142,1760211032978,-500.0,0.00022589,2]
[390909144,1760211032991,-500.0,0.00022589,2]
[390909146,1760211033000,-500.0,0.00022589,2]
[390909147,1760211033010,-500.0,0.00022589,2]
[390909148,1760211033019,-500.0,0.00022589,2]
[390909149,1760211033029,-500.0,0.00022589,2]
[390909150,1760211033038,-500.0,0.00022589,2]
[390909151,1760211033048,-500.0,0.00022589,2]
[390909152,1760211033058,-500.0,0.00022589,2]
[390909153,1760211033067,-500.0,0.00022589,2]
[390909154,1760211033076,-518.15,0.00022589,2]
[390909155,1760211033085,-500.0,0.00022589,2]
[390909156,1760211033094,-635.72,0.00022589,2]
[390909157,1760211033104,-500.0,0.00022589,2]
[390909158,1760211033114,-500.0,0.00022589,2]
[390909159,1760211033123,-500.0,0.00022589,2]
[390909160,1760211033132,-500.0,0.00022589,2]
[390909161,1760211033141,-383.68,0.00022589,2]
[390909162,1760211033150,-157.86,0.0002259,2]
[390909163,1760211033160,-500.0,0.0002259,2]
[390909164,1760211033169,-500.0,0.0002259,2]
[390909165,1760211033178,-500.0,0.0002259,2]
[390909166,1760211033187,-500.0,0.0002259,2]
[390909167,1760211033196,-500.0,0.0002259,2]
[390909168,1760211033205,-500.0,0.0002259,2]
[390909169,1760211033215,-500.0,0.0002259,2]
[390909170,1760211033225,-500.0,0.0002259,2]
[390909171,1760211033234,-345.46,0.0002259,2]
[390909172,1760211033247,-500.0,0.0002259,2]
[390909173,1760211033256,-500.0,0.0002259,2]
[390909174,1760211033266,-500.0,0.0002259,2]
[390909175,1760211033275,-500.0,0.0002259,2]
[390909176,1760211033285,-512.93,0.0002259,2]
[390909177,1760211033294,-500.0,0.0002259,2]
[390909178,1760211033303,-500.0,0.0002259,2]
[390909179,1760211033313,-500.0,0.0002259,2]
[390909180,1760211033322,-500.0,0.0002259,2]
[390909181,1760211033331,-357.9,0.0002259,2]
[390909182,1760211033340,-500.0,0.0002259,2]
[390909183,1760211033349,-500.0,0.0002259,2]
[390909184,1760211033359,-500.0,0.0002259,2]
[390909185,1760211033367,-500.0,0.0002259,2]
[390909186,1760211033377,-234.72,0.0002259,2]
[390909187,1760211033386,-649.52,0.0002259,2]
[390909188,1760211033395,-500.0,0.0002259,2]
[390909189,1760211033404,-500.0,0.00022591,2]
[390909190,1760211033413,-500.0,0.00022591,2]
[390909191,1760211033423,-500.0,0.00022591,2]
[390909192,1760211033432,-500.0,0.00022591,2]
[390909193,1760211033442,-500.0,0.00022591,2]
[390909194,1760211033451,-500.0,0.00022591,2]
[390909195,1760211033460,-500.0,0.00022591,2]
[390909196,1760211033470,-500.0,0.00022591,2]
[390909197,1760211033480,-500.0,0.00022591,2]
[390909198,1760211033491,-500.0,0.00022591,2]
[390909199,1760211033500,-532.98,0.00022591,2]
[390909200,1760211033509,-358.17,0.00023077,2]
[390909201,1760211033518,-5000.0,0.00023107,2]
[390909202,1760211033530,-251.01041148,0.0002334,2]
[390909203,1760211033539,-189.7226975,0.00023342,2]
[390909204,1760211033548,-153.0,0.00023342,2]
[390909205,1760211033557,-189.7226975,0.00023342,2]
[390909206,1760211033568,-153.0,0.00023342,2]
[390909207,1760211033582,-491.0742356,0.00023342,2]
[390909208,1760211033594,-188.86567153,0.0002355,2]
[390909209,1760211033603,-500.0,0.00023573,2]
[390909210,1760211033612,-500.0,0.00023573,2]
[390909211,1760211033623,-500.0,0.00023573,2]
[390909212,1760211033633,-423.66194359,0.00023573,2]
[390909213,1760211033643,-515.13713627,0.00023573,2]
[390909214,1760211033652,-507.55432842,0.00023573,2]
[390909215,1760211033664,-248.75355055,0.00023573,2]
[390909216,1760211033674,-215.12409197,0.00023573,2]
[390909217,1760211033683,-500.0,0.00023573,2]
[390909218,1760211033693,-500.0,0.00023573,2]
[390909219,1760211033702,-500.0,0.00023573,2]
[390909220,1760211033711,-500.0,0.00023573,2]
[390909221,1760211033720,-500.0,0.00023578,2]
[390909222,1760211033729,-500.0,0.00023578,2]
[390909223,1760211033741,-500.0,0.00023578,2]
[390909224,1760211033750,-500.0,0.00023578,2]
[390909225,1760211033759,-295.34,0.00023578,2]
[390909226,1760211033768,-500.0,0.00023578,2]
[390909227,1760211033777,-500.0,0.00023578,2]
[390909228,1760211033786,-500.0,0.00023578,2]
[390909229,1760211033796,-500.0,0.00023578,2]
[390909230,1760211033806,-500.0,0.00023578,2]
[390909231,1760211033815,-500.0,0.00023578,2]
[390909232,1760211033824,-500.0,0.00023578,2]
[390909233,1760211033834,-500.0,0.00023578,2]
[390909234,1760211033843,-646.26,0.00023579,2]
[390909235,1760211033852,-500.0,0.00023579,2]
[390909236,1760211033862,-500.0,0.00023579,2]
[390909237,1760211033871,-500.0,0.00023579,2]
[390909238,1760211033880,-500.0,0.00023579,2]
[390909239,1760211033890,-500.0,0.00023579,2]
[390909240,1760211033899,-500.0,0.00023579,2]
[390909241,1760211033909,-500.0,0.00023579,2]
[390909242,1760211033918,-408.91384145,0.00023579,2]
[390909243,1760211033927,-500.0,0.00023579,2]
[390909244,1760211033936,-500.0,0.00023579,2]
[390909245,1760211033945,-500.0,0.00023579,2]
[390909246,1760211033955,-500.0,0.00023579,2]
[390909247,1760211033964,-500.0,0.00023579,2]
[390909248,1760211033973,-583.26,0.00023579,2]
[390909249,1760211033982,-500.0,0.00023579,2]
[390909250,1760211033992,-500.0,0.00023579,2]
[390909251,1760211034002,-500.0,0.00023579,2]
[390909252,1760211034014,-500.0,0.00023579,2]
[390909253,1760211034026,-500.0,0.00023579,2]
[390909254,1760211034038,-176.08,0.00023579,2]
[390909255,1760211034049,-500.0,0.00023579,2]
[390909256,1760211034061,-500.0,0.00023579,2]
[390909257,1760211034072,-393.8,0.00023579,2]
[390909258,1760211034084,-500.0,0.00023579,2]
[390909259,1760211034094,-500.0,0.00023579,2]
[390909260,1760211034106,-500.0,0.00023579,2]
[390909261,1760211034116,-500.0,0.00023579,2]
[390909262,1760211034126,-335.68094792,0.00023579,2]
[390909263,1760211034136,-500.0,0.00023579,2]
[390909264,1760211034145,-500.0,0.00023579,2]
[390909265,1760211034157,-500.0,0.00023579,2]
[390909266,1760211034167,-500.0,0.00023579,2]
[390909267,1760211034178,-500.0,0.00023579,2]
[390909268,1760211034189,-500.0,0.00023579,2]
[390909269,1760211034200,-500.0,0.00023579,2]
[390909270,1760211034210,-500.0,0.00023579,2]
[390909271,1760211034221,-500.0,0.00023579,2]
[390909272,1760211034232,-500.0,0.00023579,2]
[390909273,1760211034244,-300.03,0.00023579,2]
[390909274,1760211034255,-500.0,0.00023579,2]
[390909275,1760211034266,-500.0,0.00023579,2]
[390909276,1760211034277,-500.0,0.00023579,2]
[390909277,1760211034288,-500.0,0.00023579,2]
[390909278,1760211034298,-500.0,0.00023579,2]
[390909279,1760211034309,-500.0,0.00023579,2]
[390909280,1760211034321,-500.0,0.00023579,2]
[390909281,1760211034331,-500.0,0.00023579,2]
[390909282,1760211034342,-502.55,0.00023579,2]
[390909283,1760211034354,-500.0,0.00023579,2]
[390909284,1760211034365,-500.0,0.00023579,2]
[390909285,1760211034375,-500.0,0.00023579,2]
[390909286,1760211034386,-500.0,0.00023579,2]
[390909287,1760211034396,-500.0,0.00023579,2]
[390909288,1760211034412,-626.35,0.00023579,2]
[390909289,1760211034428,-500.0,0.00023579,2]
[390909290,1760211034440,-500.0,0.00023579,2]
[390909291,1760211034457,-500.0,0.00023579,2]
[390909292,1760211034468,-500.0,0.00023579,2]
[390909293,1760211034480,-500.0,0.00023579,2]
[390909294,1760211034495,-408.34,0.00023579,2]
[390909295,1760211034506,-500.0,0.00023579,2]
[390909296,1760211034518,-500.0,0.00023579,2]
[390909297,1760211034531,-500.0,0.00023579,2]
[390909298,1760211034543,-500.0,0.00023579,2]
[390909299,1760211034554,-500.0,0.00023579,2]
[390909300,1760211034567,-500.0,0.00023579,2]
[390909301,1760211034579,-500.0,0.00023579,2]
[390909302,1760211034593,-500.0,0.00023579,2]
[390909303,1760211034605,-500.0,0.00023579,2]
[390909304,1760211034615,-500.0,0.00023579,2]
[390909305,1760211034626,-500.0,0.00023579,2]
[390909306,1760211034635,-326.21,0.00023579,2]
[390909307,1760211034645,-500.0,0.00023579,2]
[390909308,1760211034654,-500.0,0.00023579,2]
[390909309,1760211034666,-500.0,0.00023579,2]
[390909310,1760211034677,-500.0,0.00023579,2]
[390909311,1760211034688,-500.0,0.00023579,2]
[390909312,1760211034697,-212.52,0.00023579,2]
[390909313,1760211034708,-500.0,0.00023579,2]
[390909314,1760211034719,-500.0,0.00023579,2]
[390909315,1760211034730,-500.0,0.00023579,2]
[390909316,1760211034745,-500.0,0.00023579,2]
[390909317,1760211034755,-500.0,0.00023579,2]
[390909318,1760211034766,-500.0,0.00023579,2]
[390909319,1760211034777,-500.0,0.00023579,2]
[390909320,1760211034789,-500.0,0.00023579,2]
[390909321,1760211034800,-500.0,0.00023579,2]
[390909322,1760211034810,-500.0,0.00023579,2]
[390909323,1760211034822,-500.0,0.00023579,2]
[390909324,1760211034834,-500.0,0.00023579,2]
[390909325,1760211034844,-500.0,0.00023579,2]
[390909326,1760211034855,-500.0,0.00023579,2]
[390909327,1760211034867,-500.0,0.00023579,2]
[390909328,1760211034877,-500.0,0.00023579,2]
[390909329,1760211034888,-500.0,0.00023579,2]
[390909330,1760211034899,-500.0,0.00023579,2]
[390909331,1760211034910,-500.0,0.00023579,2]
[390909332,1760211034921,-500.0,0.00023579,2]
[390909333,1760211034932,-500.0,0.00023579,2]
[390909334,1760211034943,-449.6,0.00023579,2]
[390909335,1760211034953,-500.0,0.00023579,2]
[390909336,1760211034963,-500.0,0.00023579,2]
[390909337,1760211034973,-500.0,0.00023579,2]
[390909338,1760211034982,-500.0,0.00023579,2]
[390909339,1760211034994,-500.0,0.00023579,2]
[390909340,1760211035004,-599.44,0.00023579,2]
[390909341,1760211035014,-500.0,0.00023579,2]
[390909342,1760211035024,-500.0,0.00023579,2]
[390909343,1760211035034,-153.0,0.00023589,2]
[390909344,1760211035045,-588.4106815,0.00023589,2]
[390909345,1760211035056,-189.7226975,0.00023589,2]
[390909346,1760211035067,-297.8851395,0.00023589,2]
[390909347,1760211035078,-588.4106815,0.00023589,2]
[390909348,1760211035089,-153.0,0.00023589,2]
[390909349,1760211035099,-189.7226975,0.00023589,2]
[390909350,1760211035111,-297.8851395,0.00023589,2]
[390909351,1760211035120,-1316.28,0.00023664,3]
[390909352,1760211035131,-500.0,0.00023673,2]
[390909353,1760211035140,-500.0,0.00023673,2]
[390909354,1760211035150,-501.07479901,0.00023673,2]
[390909355,1760211035159,-500.0,0.00023673,2]
[390909356,1760211035170,-502.26458203,0.00023673,2]
[390909357,1760211035180,-500.0,0.00023673,2]
[390909358,1760211035190,-500.0,0.00023674,2]
[390909359,1760211035200,-500.0,0.00023674,2]
[390909360,1760211035210,-500.0,0.00023674,2]
[390909361,1760211035222,-500.0,0.00023674,2]
[390909362,1760211035232,-500.0,0.00023674,2]
[390909363,1760211035244,-500.0,0.00023674,2]
[390909364,1760211035254,-500.0,0.00023674,2]
[390909365,1760211035264,-177.47,0.00023674,2]
[390909366,1760211035273,-500.0,0.00023674,2]
[390909367,1760211035283,-500.0,0.00023674,2]
[390909368,1760211035294,-500.0,0.00023674,2]
[390909369,1760211035303,-486.83090224,0.00023674,2]
[390909370,1760211035312,-500.0,0.00023674,2]
[390909371,1760211035322,-500.0,0.00023674,2]
[390909372,1760211035331,-500.0,0.00023674,2]
[390909373,1760211035341,-500.0,0.00023674,2]
[390909374,1760211035351,-638.48,0.00023674,2]
[390909375,1760211035360,-483.52875718,0.00023674,2]
[390909376,1760211035370,-500.0,0.00023674,2]
[390909377,1760211035379,-300.0,0.00023808,20]
[390909378,1760211035389,-300.0,0.00023808,20]
[390909379,1760211035399,-300.0,0.00023808,20]
[390909380,1760211035409,-300.0,0.00023808,20]
[390909381,1760211035419,-300.0,0.00023808,20]
[390909382,1760211035429,-300.0,0.00023808,20]
[390909383,1760211035440,-300.0,0.00023808,20]
[390909384,1760211035451,-300.0,0.00023808,20]
[390909385,1760211035461,-300.0,0.00023808,20]
[390909386,1760211035472,-300.0,0.00023808,20]
[390909387,1760211035482,-300.0,0.00023808,20]
[390909388,1760211035494,-300.0,0.00023808,20]
[390909389,1760211035504,-300.0,0.00023808,20]
[390909390,1760211035515,-300.0,0.00023808,20]
[390909391,1760211035526,-300.0,0.00023808,20]
[390909392,1760211035537,-283.75089994,0.0002394,2]
[390909393,1760211035547,-150.0,0.00023973,2]
[390909394,1760211035557,-501.34363723,0.00023973,2]
[390909395,1760211035567,-498.51325855,0.00023973,2]
[390909396,1760211035577,-500.66067143,0.00023973,2]
[390909397,1760211035592,-658.14,0.0002398,3]
[390909398,1760211035602,-329.07,0.0002398,3]
[390909399,1760211035612,-164.53,0.0002398,3]
[390909400,1760211035623,-493.64,0.0002398,3]
[390909401,1760211035633,-417.92,0.00024,2]
[390909402,1760211035643,-6776.49,0.00024,2]
[390909403,1760211035654,-600.0,0.0002405,20]
[390909404,1760211035665,-168.0,0.00024079,2]
[390909405,1760211035674,-168.0,0.00024119,2]
[390909406,1760211035684,-1000.0,0.00024121,2]
[390909407,1760211035695,-1010.99151939,0.00024121,2]
[390909408,1760211035704,-806.13,0.00024122,3]
[390909409,1760211035714,-537.41,0.00024132,3]
[390909410,1760211035880,-268.7,0.00024132,3]
[390909411,1760211035896,-14832.62701326,0.00024142,2]
[390909415,1760211038386,-500.0,0.00022588,2]
[390909416,1760211038396,-440.76601722,0.00022588,2]
[390909417,1760211038405,-284.44,0.00023578,2]
[390909418,1760211038415,-21759.16415209,0.00024142,2]
[390909419,1760211038426,-1902.47090782,0.00024142,2]
[390909420,1760211038442,-50092.29808151,0.00024142,2]
[390909421,1760211038451,-500.0,0.00024173,2]
[390909422,1760211038460,-500.0,0.00024173,2]
[390909423,1760211038469,-500.0,0.00024173,2]
[390909424,1760211038477,-168.0,0.00024212,2]
[390909425,1760211038487,-320.63419957,0.00024221,2]
[390909426,1760211038496,-500.0,0.00024221,2]
[390909427,1760211038505,-168.0,0.00024243,2]
[390909428,1760211038515,-168.0,0.00024446,2]
[390909429,1760211038523,-168.0,0.00024479,2]
[390909430,1760211038532,-300.0,0.00024521,2]
[390909431,1760211038542,-420.0,0.00024531,2]
[390909432,1760211038551,-1297.0,0.00024533,2]
[390909433,1760211038560,-316.49138839,0.0002454,2]
[390909434,1760211038570,-168.0,0.00024595,2]
[390909435,1760211038579,-156.29549428,0.00024612,7]
[390909436,1760211038592,-1680.0,0.00024645,2]
[390909438,1760211038601,-150.0,0.00024658,2]
[390909439,1760211038611,-380.0,0.00024658,2]
[390909440,1760211038621,-1113.24865582,0.00024668,2]
[390909441,1760211038631,-403.63012966,0.00024678,2]
[390909442,1760211038640,-152.66745275,0.00024678,2]
[390909443,1760211038650,-18603.8837,0.00024679,2]
[390909444,1760211038660,-168.88576873,0.00024679,2]
[390909445,1760211038669,-168.0,0.00024696,2]
[390909446,1760211038684,-1165.73737308,0.000247,2]
[390909447,1760211038696,-1000.0,0.00024721,2]
[390909448,1760211038707,-1000.0,0.00024721,2]
[390909449,1760211038717,-1002.45008947,0.00024721,2]
[390909450,1760211038726,-168.0,0.00024755,2]
[390909451,1760211038735,-170.156,0.00024783,8]
[390909452,1760211038746,-37110.2174929,0.000248,2]
[390909453,1760211038756,-1740.99199513,0.000248,4]
[390909454,1760211038765,-151.0,0.000248,8]
[390909455,1760211038775,-1104.6824219,0.00024804,2]
[390909456,1760211038785,-500.0,0.00024851,9]
[390909457,1760211038795,-500.0,0.00024851,9]
[390909458,1760211038804,-477.56,0.00024852,2]
[390909459,1760211038814,-500.0,0.00024871,9]
[390909460,1760211038823,-161.52818085,0.00024873,2]
[390909461,1760211038832,-168.14177406,0.00024893,9]
[390909462,1760211038842,-654609.115658,0.000249,2]
[390909463,1760211038852,-325.7514914,0.00024904,2]
[390909464,1760211038861,-380.9091254,0.00024904,2]
[390909465,1760211038871,-306.0,0.00024904,2]
[390909466,1760211038882,-588.4106815,0.00024904,2]
[390909467,1760211038891,-588.4106815,0.00024904,2]
[390909468,1760211038901,-588.4106815,0.00024904,2]
[390909469,1760211038910,-588.4106815,0.00024904,2]
[390909471,1760211038920,-297.8851395,0.00024904,2]
[390909473,1760211038929,-297.8851395,0.00024904,2]
[390909474,1760211038938,-297.8851395,0.00024904,2]
[390909475,1760211038948,-297.8851395,0.00024904,2]
[390909477,1760211038957,-297.8851395,0.00024904,2]
[390909479,1760211038967,-262.63705719,0.00024949,2]
[390909481,1760211038976,-9277.55437323,0.00024987,2]
[390909482,1760211038986,-100000.0,0.0002499,2]
[390909484,1760211038997,-140040.81407276,0.00025,2]
[390909486,1760211039009,-348854.29620783,0.00025,2]
[390909488,1760211039019,-2632.56,0.00025034,3]
[390909489,1760211039028,-168.0,0.0002505,2]
[390909490,1760211039037,-168.0,0.00025064,2]
[390909491,1760211039046,-450.0,0.00025068,2]
[390909492,1760211039056,-168.0,0.00025079,2]
[390909493,1760211039067,-359.22761131,0.00025085,2]
[390909494,1760211039077,-151.0,0.00025096,9]